fUSD/lending_fUSD_20240718
["ID","MTS","AMOUNT","RATE_DAILY","PERIOD"]
[332493364,1721274365863,200.0,0.00014775,30]
[332493365,1721274365897,200.0,0.00014775,30]
[332493366,1721274365942,201.74404386,0.00014775,30]
[332493386,1721274597558,200.0,0.00014701,30]
[332493387,1721274597610,200.0,0.00014701,30]
[332493388,1721274597717,200.0,0.00014701,30]
[332493389,1721274597753,200.0,0.00014701,30]
[332493390,1721274597793,200.0,0.00014701,30]
[332493406,1721274632158,-250.0,0.00011146,2]
[332493407,1721274632168,-188.27,0.00013248,2]
[332493408,1721274632177,-250.0,0.00013283,2]
[332493409,1721274632187,-840.0,0.00013286,2]
[332493410,1721274632196,-1449.36233919,0.00013436,2]
[332493411,1721274632207,-791.24822385,0.00013436,2]
[332493412,1721274632218,-883.38639551,0.00013436,2]
[332493413,1721274632411,-422.57359696,0.00013436,2]
[332493414,1721274632422,-9743.5273487,0.00013436,2]
[332493415,1721274632441,-1017.04312744,0.00013436,2]
[332493416,1721274632453,-607.95818831,0.00013436,2]
[332493417,1721274632487,-1660.29818461,0.00013436,2]
[332493418,1721274632501,-11540.74353535,0.00013436,2]
[332493419,1721274632510,-12945.0566896,0.0001384,2]
[332493420,1721274632520,-150.0,0.0001389,2]
[332493421,1721274632532,-257.39,0.0001391,2]
[332493422,1721274632542,-257.39,0.00013913,2]
[332493423,1721274632551,-4420.50641199,0.00013914,2]
[332493424,1721274632561,-257.39,0.00013917,2]
[332493425,1721274632570,-257.39,0.00013921,2]
[332493426,1721274632580,-257.39,0.00013924,2]
[332493427,1721274632589,-2001.76,0.00013924,2]
[332493428,1721274632599,-257.39,0.00013928,2]
[332493429,1721274632608,-499.99,0.00013932,2]
[332493430,1721274632617,-4642.67,0.00013932,2]
[332493431,1721274632627,-257.39,0.00013932,2]
[332493432,1721274632636,-257.39,0.00013935,2]
[332493433,1721274632649,-6420.75,0.00013935,2]
[332493434,1721274632659,-257.39,0.00013939,2]
[332493435,1721274632669,-257.39,0.00013943,2]
[332493436,1721274632678,-257.39,0.00013946,2]
[332493437,1721274632688,-257.39,0.0001395,2]
[332493438,1721274632707,-759.04945973,0.00013953,2]
[332493439,1721274632717,-257.39,0.00013954,2]
[332493440,1721274632728,-257.39,0.00013957,2]
[332493441,1721274632738,-257.39,0.00013961,2]
[332493442,1721274632748,-553.07396753,0.00013964,2]
[332493443,1721274632758,-257.39,0.00013965,2]
[332493444,1721274632768,-208.95928661,0.00013967,2]
[332493445,1721274632777,-257.39,0.00013968,2]
[332493446,1721274632787,-257.39,0.00013972,2]
[332493447,1721274632797,-364.95974836,0.00013975,2]
[332493448,1721274632809,-257.39,0.00013976,2]
[332493449,1721274632819,-257.39,0.00013979,2]
[332493450,1721274632829,-500.0,0.00014,2]
[332493451,1721274632839,-215.45,0.00014063,2]
[332493452,1721274632851,-683.33,0.00014063,2]
[332493453,1721274632861,-1500.0,0.00014185,2]
[332493454,1721274632871,-1500.0,0.00014216,2]
[332493455,1721274632880,-250.0,0.00014321,2]
[332493456,1721274632890,-1500.0,0.00014322,2]
[332493457,1721274632900,-1500.0,0.00014327,2]
[332493458,1721274632910,-10000.0,0.00014367,2]
[332493459,1721274632919,-1500.0,0.00014436,2]
[332493460,1721274632929,-1500.0,0.00014548,2]
[332493461,1721274632939,-1172.26776172,0.00014551,2]
[332493462,1721274632948,-1500.0,0.00014587,2]
[332493463,1721274632958,-158.97684361,0.00014649,2]
[332493464,1721274632968,-181.54540034,0.00014684,2]
[332493465,1721274632978,-181.54540034,0.00014684,2]
[332493466,1721274632987,-158.40690257,0.00014684,2]
[332493467,1721274632997,-49868.0,0.00014685,2]
[332493468,1721274633006,-223968.97055607,0.00014701,2]
[332493469,1721274633020,-12057.63685457,0.00014701,2]
[332493470,1721274633030,-171.06996014,0.00014701,2]
[332493471,1721274633041,-1000.0,0.00014749,2]
[332493472,1721274633051,-4546.0184,0.00014749,2]
[332493473,1721274633061,-1433.7035,0.00014749,2]
[332493474,1721274633070,-11427.3276,0.00014749,2]
[332493475,1721274633080,-8152.2878,0.00014749,2]
[332493476,1721274633090,-599.58301876,0.00014788,2]
[332493477,1721274633102,-1500.0,0.00014789,2]
[332493478,1721274633112,-752.248858,0.00014795,2]
[332493479,1721274633122,-151.0772783,0.00014831,2]
[332493480,1721274633132,-256.42413199,0.00014831,2]
[332493481,1721274633141,-1500.0,0.00014832,2]
[332493482,1721274633151,-3631.19182574,0.00014838,2]
[332493483,1721274633160,-2965.75143,0.0001484,2]
[332493484,1721274633170,-528.02506636,0.00014849,2]
[332493485,1721274633180,-5598.58319653,0.00014849,2]
[332493486,1721274633189,-157.92524855,0.00014865,2]
[332493487,1721274633199,-242.53386332,0.00014865,2]
[332493488,1721274633209,-151.07727828,0.00014866,2]
[332493489,1721274633219,-500.0,0.0001487,2]
[332493490,1721274633228,-200.0,0.0001487,2]
[332493491,1721274633237,-431.70678588,0.00014879,2]
[332493492,1721274633247,-452.50779412,0.00014881,2]
[332493493,1721274633256,-366.83842223,0.00014881,2]
[332493494,1721274633266,-155.0,0.00014881,2]
[332493495,1721274633275,-1500.0,0.00014882,2]
[332493496,1721274633286,-293.03052447,0.00014882,2]
[332493497,1721274633295,-599.8986,0.00014883,2]
[332493498,1721274633305,-310.4515,0.00014883,2]
[332493499,1721274633314,-1000.0,0.00014883,2]
[332493500,1721274633324,-174.42889109,0.00014889,2]
[332493501,1721274633333,-151.0,0.0001489,2]
[332493502,1721274633343,-4598.962699,0.0001489,2]
[332493503,1721274633355,-151.0,0.0001489,2]
[332493504,1721274633365,-4598.962699,0.0001489,2]
[332493505,1721274633375,-593.844848,0.0001489,2]
[332493506,1721274633384,-178.549566,0.0001489,2]
[332493507,1721274633393,-593.844848,0.0001489,2]
[332493508,1721274633403,-635.30074,0.0001489,2]
[332493509,1721274633412,-178.549566,0.0001489,2]
[332493510,1721274633421,-432.15,0.0001489,2]
[332493511,1721274633431,-151.0,0.0001489,2]
[332493512,1721274633440,-635.30074,0.0001489,2]
[332493513,1721274633449,-432.15,0.0001489,2]
[332493514,1721274633459,-807.998857,0.0001489,2]
[332493515,1721274633468,-279.702985,0.0001489,2]
[332493516,1721274633478,-807.998857,0.0001489,2]
[332493517,1721274633487,-4728.362084,0.0001489,2]
[332493518,1721274633497,-151.0,0.0001489,2]
[332493519,1721274633506,-3782.86236529,0.0001489,2]
[332493520,1721274633523,-945.49971871,0.0001489,2]
[332493521,1721274633533,-151.0,0.0001489,2]
[332493522,1721274633542,-1650.39611398,0.0001489,2]
[332493523,1721274633554,-153.16322502,0.0001489,2]
[332493524,1721274633564,-967.60396313,0.0001489,2]
[332493525,1721274633575,-450.0,0.0001489,2]
[332493526,1721274633596,-1001.55012815,0.0001489,2]
[332493527,1721274633608,-1007.07587274,0.0001489,2]
[332493533,1721274637989,-366.83842223,0.00014869,2]
[332493534,1721274638000,-2514.42157777,0.0001489,2]
[332493535,1721274638019,-1976.14557521,0.0001489,2]
[332493536,1721274638031,-1803.559339,0.0001489,2]
[332493537,1721274638040,-3720.315963,0.0001489,2]
[332493538,1721274638050,-7916.797117,0.0001489,2]
[332493539,1721274638059,-302.133403,0.0001489,2]
[332493540,1721274638069,-3720.315963,0.0001489,2]
[332493541,1721274638079,-302.133403,0.0001489,2]
[332493542,1721274638088,-2580.12768,0.0001489,2]
[332493543,1721274638098,-151.0,0.0001489,2]
[332493544,1721274638111,-217.442874,0.0001489,2]
[332493545,1721274638120,-2580.12768,0.0001489,2]
[332493546,1721274638130,-151.0,0.0001489,2]
[332493547,1721274638141,-4507.00224,0.0001489,2]
[332493548,1721274638150,-151.0,0.0001489,2]
[332493549,1721274638159,-151.0,0.0001489,2]
[332493550,1721274638168,-2638.72313651,0.0001489,2]
[332493557,1721274638955,-649.71894647,0.0001489,2]
[332493558,1721274638967,-1151.7587563,0.0001489,2]
[332493559,1721274638978,-66.80140072,0.0001489,2]
[332493560,1721274638988,-358.08168466,0.0001489,2]
[332493561,1721274638999,-300.32,0.0001489,2]
[332493562,1721274639010,-29059.52591534,0.0001489,2]
[332493563,1721274639019,-306.02874822,0.00014899,2]
[332493564,1721274639030,-169.24841402,0.000149,2]
[332493565,1721274639039,-166.09051489,0.000149,2]
[332493566,1721274639050,-151.07727828,0.000149,2]
[332493567,1721274639059,-1972.04819842,0.000149,2]
[332493568,1721274639068,-294.09595296,0.000149,2]
[332493569,1721274639077,-188.27,0.00014905,2]
[332493570,1721274639087,-188.15295362,0.00014921,2]
[332493571,1721274639096,-1195.08005924,0.0001493,2]
[332493572,1721274639106,-1195.08005924,0.0001493,2]
[332493573,1721274639115,-151.0,0.00014931,2]
[332493574,1721274639125,-179.414154,0.00014931,2]
[332493575,1721274639135,-179.414154,0.00014931,2]
[332493576,1721274639146,-816.166516,0.00014931,2]
[332493577,1721274639156,-816.166516,0.00014931,2]
[332493578,1721274639166,-2719.824161,0.00014931,2]
[332493579,1721274639176,-2719.824161,0.00014931,2]
[332493580,1721274639185,-746.030332,0.00014931,2]
[332493581,1721274639195,-746.030332,0.00014931,2]
[332493582,1721274639204,-994.216004,0.00014931,2]
[332493583,1721274639214,-726.39859234,0.00014931,2]
[332493584,1721274639230,-267.81741166,0.00014931,2]
[332493585,1721274639239,-204.627222,0.00014931,2]
[332493586,1721274639248,-151.0,0.00014931,2]
[332493587,1721274639258,-151.0,0.00014931,2]
[332493588,1721274639267,-151.580911,0.00014931,2]
[332493589,1721274639277,-151.0,0.00014931,2]
[332493590,1721274639287,-151.0,0.00014931,2]
[332493591,1721274639297,-2227.694519,0.00014931,2]
[332493592,1721274639306,-2227.694519,0.00014931,2]
[332493593,1721274639315,-168.919541,0.00014931,2]
[332493594,1721274639325,-168.919541,0.00014931,2]
[332493595,1721274639334,-699.996414,0.00014931,2]
[332493596,1721274639343,-699.996414,0.00014931,2]
[332493597,1721274639354,-151.0,0.00014931,2]
[332493598,1721274639363,-152.456032,0.00014931,2]
[332493599,1721274639372,-151.0,0.00014931,2]
[332493600,1721274639382,-310.966763,0.00014931,2]
[332493601,1721274639393,-683.163934,0.00014931,2]
[332493602,1721274639402,-310.966763,0.00014931,2]
[332493603,1721274639411,-394.874105,0.00014931,2]
[332493604,1721274639420,-683.163934,0.00014931,2]
[332493605,1721274639429,-151.0,0.00014931,2]
[332493606,1721274639438,-394.874105,0.00014931,2]
[332493607,1721274639449,-417.892544,0.00014931,2]
[332493608,1721274639458,-154.55025778,0.00014931,2]
[332493609,1721274639470,-263.34228622,0.00014931,2]
[332493610,1721274639479,-306.582727,0.00014931,2]
[332493611,1721274639489,-208.40064143,0.00014931,2]
[332493612,1721274639501,-98.18208557,0.00014931,2]
[332493613,1721274639510,-719.950485,0.00014931,2]
[332493614,1721274639519,-719.950485,0.00014931,2]
[332493615,1721274639529,-485.941853,0.00014931,2]
[332493616,1721274639540,-485.941853,0.00014931,2]
[332493617,1721274639549,-159.207015,0.00014931,2]
[332493618,1721274639559,-159.207015,0.00014931,2]
[332493619,1721274639568,-151.0,0.00014931,2]
[332493620,1721274639578,-471.1171948,0.00014931,2]
[332493621,1721274639590,-63.5515172,0.00014931,2]
[332493622,1721274639599,-232.744237,0.00014931,2]
[332493623,1721274639612,-232.744237,0.00014931,2]
[332493624,1721274639622,-534.668712,0.00014931,2]
[332493625,1721274639633,-151.0,0.00014931,2]
[332493626,1721274639644,-1023.077991,0.00014931,2]
[332493627,1721274639655,-548.924586,0.00014931,2]
[332493628,1721274639664,-151.0,0.00014931,2]
[332493629,1721274639674,-225.58049793,0.00014931,2]
[332493630,1721274639701,-797.49749307,0.00014931,2]
[332493631,1721274639711,-12.66478785,0.00014931,2]
[332493632,1721274639727,-229.82690615,0.00014931,2]
[332493633,1721274639737,-548.924586,0.00014931,2]
[332493635,1721274639747,-242.491694,0.00014931,2]
[332493636,1721274639757,-718.120442,0.00014931,2]
[332493637,1721274639766,-117.19947935,0.00014931,2]
[332493638,1721274639777,-600.92096265,0.00014931,2]
[332493639,1721274639787,-72.48849199,0.00014931,2]
[332493640,1721274639798,-586.27968751,0.00014931,2]
[332493641,1721274639811,-88.1712035,0.00014931,2]
[332493642,1721274639820,-151.0,0.00014931,2]
[332493643,1721274639830,-746.939383,0.00014931,2]
[332493644,1721274639840,-151.0,0.00014931,2]
[332493645,1721274639849,-3317.626914,0.00014931,2]
[332493646,1721274639859,-335.92784,0.00014931,2]
[332493647,1721274639869,-3317.626914,0.00014931,2]
[332493648,1721274639879,-335.92784,0.00014931,2]
[332493649,1721274639888,-427.521215,0.00014931,2]
[332493650,1721274639898,-2850.531161,0.00014931,2]
[332493652,1721274639907,-427.521215,0.00014931,2]
[332493654,1721274639916,-151.0,0.00014931,2]
[332493655,1721274639925,-2850.531161,0.00014931,2]
[332493656,1721274639935,-205.771395,0.00014931,2]
[332493657,1721274639946,-276.191,0.00014931,2]
[332493658,1721274639957,-276.191,0.00014931,2]
[332493659,1721274639966,-175.567002,0.00014931,2]
[332493660,1721274639975,-3839.947826,0.00014931,2]
[332493661,1721274639985,-175.567002,0.00014931,2]
[332493662,1721274639994,-151.0,0.00014931,2]
[332493663,1721274640003,-3839.947826,0.00014931,2]
[332493664,1721274640012,-399.265952,0.00014931,2]
[332493665,1721274640022,-399.265952,0.00014931,2]
[332493666,1721274640032,-151.0,0.00014931,2]
[332493667,1721274640041,-651.395155,0.00014931,2]
[332493668,1721274640051,-198.698991,0.00014931,2]
[332493669,1721274640060,-651.395155,0.00014931,2]
[332493670,1721274640069,-198.698991,0.00014931,2]
[332493671,1721274640078,-151.0,0.00014931,2]
[332493672,1721274640087,-525.001114,0.00014931,2]
[332493673,1721274640097,-525.001114,0.00014931,2]
[332493674,1721274640107,-4598.962699,0.00014931,2]
[332493675,1721274640116,-151.0,0.00014931,2]
[332493676,1721274640127,-4598.962699,0.00014931,2]
[332493677,1721274640136,-151.0,0.00014931,2]
[332493678,1721274640147,-593.844848,0.00014931,2]
[332493679,1721274640158,-178.549566,0.00014931,2]
[332493680,1721274640168,-593.844848,0.00014931,2]
[332493681,1721274640177,-635.30074,0.00014931,2]
[332493682,1721274640186,-178.549566,0.00014931,2]
[332493683,1721274640195,-432.15,0.00014931,2]
[332493684,1721274640205,-151.0,0.00014931,2]
[332493685,1721274640214,-635.30074,0.00014931,2]
[332493686,1721274640224,-432.15,0.00014931,2]
[332493687,1721274640235,-807.998857,0.00014931,2]
[332493688,1721274640247,-807.998857,0.00014931,2]
[332493689,1721274640259,-4728.362084,0.00014931,2]
[332493690,1721274640268,-151.0,0.00014931,2]
[332493691,1721274640277,-944.44704497,0.00014931,2]
[332493692,1721274640290,-2926.51919752,0.00014931,2]
[332493693,1721274640301,-774.91831638,0.00014931,2]
[332493694,1721274640312,-82.47752513,0.00014931,2]
[332493695,1721274640321,-151.0,0.00014931,2]
[332493696,1721274640330,-286.50250287,0.00014931,2]
[332493697,1721274640341,-1517.05683613,0.00014931,2]
[332493698,1721274640351,-682.17205387,0.00014931,2]
[332493699,1721274640362,-7234.62506313,0.00014931,2]
[332493700,1721274640371,-1803.559339,0.00014931,2]
[332493701,1721274640380,-3537.73148067,0.00014931,2]
[332493702,1721274640391,-182.58448233,0.00014931,2]
[332493703,1721274640401,-901.59509701,0.00014931,2]
[332493704,1721274640424,-1888.89310926,0.00014931,2]
[332493705,1721274640449,-886.35674604,0.00014931,2]
[332493706,1721274640500,-260.99176108,0.00014931,2]
[332493707,1721274640531,-1949.91783652,0.00014931,2]
[332493708,1721274640557,-2029.04256709,0.00014931,2]
[332493709,1721274640581,-302.133403,0.00014931,2]
[332493710,1721274640606,-3720.315963,0.00014931,2]
[332493711,1721274640636,-302.133403,0.00014931,2]
[332493712,1721274640651,-520.57064019,0.00014931,2]
[332493713,1721274640663,-2059.55703981,0.00014931,2]
[332493714,1721274640673,-151.0,0.00014931,2]
[332493715,1721274640683,-2580.12768,0.00014931,2]
[332493716,1721274640692,-151.0,0.00014931,2]
[332493717,1721274640702,-2306.19653885,0.00014931,2]
[332493718,1721274640713,-2200.80570115,0.00014931,2]
[332493719,1721274640722,-151.0,0.00014931,2]
[332493720,1721274640731,-151.0,0.00014931,2]
[332493721,1721274640741,-151.632389,0.00014931,2]
[332493722,1721274640750,-4507.00224,0.00014931,2]
[332493723,1721274640759,-11.9192112,0.00014931,2]
[332493724,1721274640772,-143.30030069,0.00014931,2]
[332493725,1721274640781,-946.5561817,0.00014946,2]
[332493726,1721274640790,-840.0,0.00014947,2]
[332493727,1721274640799,-1500.0,0.00014953,2]
[332493728,1721274640808,-317.99225646,0.0001497,2]
[332493729,1721274640817,-953.97676938,0.0001497,2]
[332493730,1721274640827,-530.54913576,0.00014972,2]
[332493731,1721274640836,-746.939383,0.00014973,2]
[332493732,1721274640845,-746.939383,0.00014973,2]
[332493733,1721274640854,-427.521215,0.00014973,2]
[332493734,1721274640863,-2747.24522725,0.00014973,2]
[332493735,1721274640874,-103.28593375,0.00014973,2]
[332493736,1721274640884,-427.521215,0.00014973,2]
[332493737,1721274640893,-2850.531161,0.00014973,2]
[332493738,1721274640902,-276.191,0.00014973,2]
[332493739,1721274640912,-276.191,0.00014973,2]
[332493740,1721274640921,-175.567002,0.00014973,2]
[332493741,1721274640930,-975.93868728,0.00014973,2]
[332493742,1721274640942,-2864.00913872,0.00014973,2]
[332493743,1721274640951,-175.567002,0.00014973,2]
[332493744,1721274640960,-151.0,0.00014973,2]
[332493745,1721274640970,-2535.76840703,0.00014973,2]
[332493746,1721274640980,-1304.17941897,0.00014973,2]
[332493747,1721274640989,-399.265952,0.00014973,2]
[332493748,1721274640998,-399.265952,0.00014973,2]
[332493750,1721274641007,-151.0,0.00014973,2]
[332493752,1721274641016,-651.395155,0.00014973,2]
[332493754,1721274641025,-198.698991,0.00014973,2]
[332493756,1721274641034,-651.395155,0.00014973,2]
[332493757,1721274641044,-198.698991,0.00014973,2]
[332493759,1721274641053,-151.0,0.00014973,2]
[332493761,1721274641062,-525.001114,0.00014973,2]
[332493763,1721274641071,-525.001114,0.00014973,2]
[332493765,1721274641080,-4598.962699,0.00014973,2]
[332493767,1721274641089,-151.0,0.00014973,2]
[332493768,1721274641098,-161.482097,0.00014973,2]
[332493770,1721274641109,-4598.962699,0.00014973,2]
[332493772,1721274641118,-593.844848,0.00014973,2]
[332493774,1721274641127,-178.549566,0.00014973,2]
[332493776,1721274641136,-593.844848,0.00014973,2]
[332493778,1721274641146,-635.30074,0.00014973,2]
[332493780,1721274641155,-178.549566,0.00014973,2]
[332493782,1721274641164,-432.15,0.00014973,2]
[332493784,1721274641173,-151.0,0.00014973,2]
[332493786,1721274641182,-635.30074,0.00014973,2]
[332493788,1721274641192,-432.15,0.00014973,2]
[332493790,1721274641202,-807.998857,0.00014973,2]
[332493792,1721274641211,-807.998857,0.00014973,2]
[332493793,1721274641220,-4728.362084,0.00014973,2]
[332493795,1721274641229,-151.0,0.00014973,2]
[332493797,1721274641238,-4728.362084,0.00014973,2]
[332493800,1721274641249,-151.0,0.00014973,2]
[332493801,1721274641259,-1803.559339,0.00014973,2]
[332493803,1721274641267,-7916.797117,0.00014973,2]
[332493805,1721274641277,-1803.559339,0.00014973,2]
[332493807,1721274641286,-3720.315963,0.00014973,2]
[332493809,1721274641295,-7916.797117,0.00014973,2]
[332493811,1721274641304,-302.133403,0.00014973,2]
[332493813,1721274641313,-3720.315963,0.00014973,2]
[332493814,1721274641322,-302.133403,0.00014973,2]
[332493816,1721274641331,-2580.12768,0.00014973,2]
[332493818,1721274641340,-151.0,0.00014973,2]
[332493820,1721274641349,-2580.12768,0.00014973,2]
[332493822,1721274641360,-151.0,0.00014973,2]
[332493824,1721274641369,-4507.00224,0.00014973,2]
[332493826,1721274641380,-151.0,0.00014973,2]
[332493828,1721274641390,-4507.00224,0.00014973,2]
[332493830,1721274641400,-1589.9612823,0.00014973,2]
[332493832,1721274641409,-1500.0,0.00014978,2]
[332493834,1721274641418,-310.966763,0.0001498,2]
[332493836,1721274641427,-310.966763,0.0001498,2]
[332493838,1721274641436,-151.0,0.0001498,2]
[332493840,1721274641445,-417.892544,0.0001498,2]
[332493842,1721274641454,-417.892544,0.0001498,2]
[332493844,1721274641463,-719.950485,0.0001498,2]
[332493846,1721274641472,-719.950485,0.0001498,2]
[332493848,1721274641481,-485.941853,0.0001498,2]
[332493850,1721274641491,-485.941853,0.0001498,2]
[332493852,1721274641500,-159.207015,0.0001498,2]
[332493854,1721274641509,-159.207015,0.0001498,2]
[332493856,1721274641518,-151.0,0.0001498,2]
[332493858,1721274641527,-232.744237,0.0001498,2]
[332493860,1721274641537,-232.744237,0.0001498,2]
[332493862,1721274641547,-534.668712,0.0001498,2]
[332493864,1721274641558,-534.668712,0.0001498,2]
[332493865,1721274641568,-232.744237,0.0001498,2]
[332493867,1721274641577,-232.744237,0.0001498,2]
[332493869,1721274641586,-534.668712,0.0001498,2]
[332493871,1721274641595,-534.668712,0.0001498,2]
[332493873,1721274641605,-151.0,0.0001498,2]
[332493875,1721274641614,-151.0,0.0001498,2]
[332493877,1721274641623,-1023.077991,0.0001498,2]
[332493879,1721274641633,-1023.077991,0.0001498,2]
[332493881,1721274641644,-548.924586,0.0001498,2]
[332493883,1721274641653,-151.0,0.0001498,2]
[332493885,1721274641662,-548.924586,0.0001498,2]
[332493887,1721274641671,-151.0,0.0001498,2]
[332493889,1721274641681,-1023.077991,0.0001498,2]
[332493891,1721274641690,-242.491694,0.0001498,2]
[332493893,1721274641700,-1023.077991,0.0001498,2]
[332493895,1721274641710,-242.491694,0.0001498,2]
[332493897,1721274641720,-548.924586,0.0001498,2]
[332493899,1721274641730,-548.924586,0.0001498,2]
[332493901,1721274641740,-242.491694,0.0001498,2]
[332493903,1721274641749,-242.491694,0.0001498,2]
[332493905,1721274641758,-718.120442,0.0001498,2]
[332493907,1721274641767,-718.120442,0.0001498,2]
[332493909,1721274641776,-718.120442,0.0001498,2]
[332493911,1721274641785,-718.120442,0.0001498,2]
[332493913,1721274641794,-746.939383,0.0001498,2]
[332493915,1721274641804,-151.0,0.0001498,2]
[332493917,1721274641814,-746.939383,0.0001498,2]
[332493918,1721274641823,-151.0,0.0001498,2]
[332493920,1721274641832,-3317.626914,0.0001498,2]
[332493922,1721274641841,-3317.626914,0.0001498,2]
[332493924,1721274641850,-335.92784,0.0001498,2]
[332493926,1721274641859,-335.92784,0.0001498,2]
[332493928,1721274641868,-3317.626914,0.0001498,2]
[332493929,1721274641877,-3317.626914,0.0001498,2]
[332493930,1721274641887,-335.92784,0.0001498,2]
[332493931,1721274641896,-335.92784,0.0001498,2]
[332493932,1721274641905,-427.521215,0.0001498,2]
[332493933,1721274641915,-2850.531161,0.0001498,2]
[332493934,1721274641924,-151.0,0.0001498,2]
[332493935,1721274641933,-427.521215,0.0001498,2]
[332493936,1721274641943,-151.0,0.0001498,2]
[332493937,1721274641952,-2525.47667665,0.0001498,2]
[332493938,1721274641965,-325.05448435,0.0001498,2]
[332493939,1721274641974,-276.191,0.0001498,2]
[332493940,1721274641984,-276.191,0.0001498,2]
[332493941,1721274641993,-275.56351565,0.0001498,2]
[332493942,1721274642004,-0.62748435,0.0001498,2]
[332493943,1721274642013,-175.567002,0.0001498,2]
[332493944,1721274642022,-175.567002,0.0001498,2]
[332493945,1721274642031,-276.191,0.0001498,2]
[332493946,1721274642040,-3839.947826,0.0001498,2]
[332493947,1721274642049,-333.00039265,0.0001498,2]
[332493949,1721274642060,-729.17517403,0.0001498,2]
[332493952,1721274642071,-475.82133345,0.0001498,2]
[332493954,1721274642082,-479.23585153,0.0001498,2]
[332493981,1721274642318,-500.0,0.0001498,2]
[332493983,1721274642329,-1322.71507434,0.0001498,2]
[332493985,1721274642339,-175.567002,0.0001498,2]
[332493987,1721274642348,-175.567002,0.0001498,2]
[332493989,1721274642358,-151.0,0.0001498,2]
[332493991,1721274642367,-151.847437,0.0001498,2]
[332493993,1721274642376,-22.35753287,0.0001498,2]
[332493995,1721274642388,-1002.20146567,0.0001498,2]
[332493998,1721274642407,-2815.38882746,0.0001498,2]
[332494000,1721274642415,-127.61033821,0.0001498,2]
[332494003,1721274642434,-522.47896045,0.0001498,2]
[332494045,1721274642962,-1909.937851,0.0001489,2]
[332494047,1721274642971,-1909.937851,0.00014931,2]
[332494049,1721274642980,-1909.937851,0.00014973,2]
[332494050,1721274642989,-3189.85852734,0.0001498,2]
[332494052,1721274642999,-399.265952,0.0001498,2]
[332494055,1721274643008,-399.265952,0.0001498,2]
[332494056,1721274643018,-399.265952,0.0001498,2]
[332494058,1721274643028,-399.265952,0.0001498,2]
[332494061,1721274643037,-151.0,0.0001498,2]
[332494062,1721274643047,-151.0,0.0001498,2]
[332494063,1721274643056,-651.395155,0.0001498,2]
[332494064,1721274643066,-651.395155,0.0001498,2]
[332494065,1721274643075,-198.698991,0.0001498,2]
[332494066,1721274643085,-198.698991,0.0001498,2]
[332494067,1721274643094,-651.395155,0.0001498,2]
[332494068,1721274643105,-651.395155,0.0001498,2]
[332494069,1721274643115,-198.698991,0.0001498,2]
[332494070,1721274643124,-198.698991,0.0001498,2]
[332494071,1721274643133,-151.0,0.0001498,2]
[332494072,1721274643142,-151.0,0.0001498,2]
[332494073,1721274643151,-525.001114,0.0001498,2]
[332494074,1721274643160,-525.001114,0.0001498,2]
[332494075,1721274643170,-525.001114,0.0001498,2]
[332494076,1721274643179,-525.001114,0.0001498,2]
[332494077,1721274643188,-4598.962699,0.0001498,2]
[332494078,1721274643197,-4598.962699,0.0001498,2]
[332494079,1721274643207,-151.0,0.0001498,2]
[332494080,1721274643216,-4598.962699,0.0001498,2]
[332494081,1721274643226,-151.0,0.0001498,2]
[332494082,1721274643235,-4598.962699,0.0001498,2]
[332494083,1721274643244,-593.844848,0.0001498,2]
[332494084,1721274643253,-593.844848,0.0001498,2]
[332494085,1721274643262,-178.549566,0.0001498,2]
[332494086,1721274643271,-178.549566,0.0001498,2]
[332494087,1721274643280,-593.844848,0.0001498,2]
[332494088,1721274643289,-593.844848,0.0001498,2]
[332494089,1721274643299,-635.30074,0.0001498,2]